Workbook

Sheet Sheet1
Y1: [
H3: 11819
A4: Data Base | B4: KHR | D4: 1846 | N4: 8 | Y4: م | Z4: اسم المورد | AA4: صاحب العهدة الاصلى
A5: Supplier Code | C5: 1808 | F5: =TODAY() -> 2023-10-28 | H5: 11815 | I5: 19 | J5: مسلسل الشيكات | K5: Month Of | L5: 2023-10-12 | N5: 10 | O5: A | Y5: 1 | Z5: طارق أحمد السيد أحمد | AA5: عبد العزيز سعد مطلق | AB5: 1 | AC5: C0100001 | AD5: ABDUL AZIZ SAAD | AM5: أرقام الشيكات
A6: Cheque No. | B6: =H12 -> عبد العزيز طلعت عبد العزيز على | J6: Cheque Date. | K6: =F5 -> 2023-10-28 | Y6: 2 | Z6: عبد الكريم محمد منجم | AB6: 2 | AC6: C0100002 | AD6: ABDULKAREM MOHAMED MONGEM
O8: =K6 -> 2023-10-28 | T8: Base Amount | U8: Transaction Reference | V8: Allocation Ref. | W8: Transaction Date | Y8: 8 | Z8: شركة المواد والتجهيزات الزراعية | AA8: شركة المواد والتجهيزات الزراعية | AB8: 8 | AC8: C0100008 | AL8: 501 | AM8: 8501
S9: C0100167 | T9: 450 | U9: 0000020012 | V9: 2549 | W9: 2012-01-31 | Y9: 10 | Z9: الشركة الاهلية للادوات الكهربائية | AL9: =AL8+1 -> 502 | AM9: =AM8+1 -> 8502
Y10: 11 | Z10: طارق أحمد السيد أحمد | AA10: أناندان | AB10: 11 | AC10: C0100011 | AD10: ANANDAN | AL10: =AL9+1 -> 503 | AM10: 8503
U11: الالغاء / اسم | V11: القيمة | X11: 48 | Y11: 15 | Z11: شركة أحمد يوسف عبدالهادي الميلم وإخوانه | AB11: 15 | AC11: C0100015 | AD11: AHMED YOUSIF ABDULHADI AL-MAIL | AL11: 504 | AM11: 8504
B12: =H36 -> 11819 | H12: =LOOKUP(C5,$Y:$Y,$Z:$Z) -> عبد العزيز طلعت عبد العزيز على | T12: 167 | U12: رياض سالم سعد هيلات | Y12: 17 | Z12: شركة الغانم الهندسية للتجارة العامة والمقاولات | AB12: 17 | AC12: C0100017 | AD12: AL AMANA IND. | AL12: 505 | AM12: 8505
X13: 112 | Y13: 19 | Z13: شركة محامص ومطاحن بن العميد | AB13: 19 | AC13: C0100019 | AD13: AL AMEED COFFEE MILLS | AL13: 506 | AM13: =AM12+1 -> 8506
D14: =IF(O5="A",ArbNum2Text(O15),PROPER("Only"&" "&(EngNum2Text(O15)))) ->  | T14: 295.5 | U14: 537.4 | V14: =C5 -> 1808 | W14: 270 | Y14: 20 | Z14: شركة العمار وشركاه الكهربائية | AB14: 20 | AC14: C0100020 | AD14: AL AMMAR & PARTNERS ELECTRICAL | AL14: 507 | AM14: 8507
O15: =IF(C5=167,W14,U14) -> 537.4 | T15: 159 | U15: داريوش حسن رضائى | Y15: 26 | Z15: العالمية | AB15: 33 | AC15: C0100033 | AD15: AL BAHAR & BARDAWEL | AL15: 508 | AM15: 8508
T16: 1555 | U16: فهد حربي محمد العنزي | X16: 990 | Y16: 33 | Z16: شركة البحر وبردويل للمواد الخصوصية | AB16: 38 | AC16: C0100038 | AD16: AL BOOM | AL16: 509 | AM16: 8509
T17: 1064 | U17: عمرو محمد محروس محمد | Y17: 38 | Z17: شركة البوم مارين | AB17: 41 | AC17: C0100041 | AD17: AL ESSA | AL17: 510 | AM17: 8510
Y18: 41 | Z18: شركة العيسى للتكييف | AB18: 50 | AC18: C0100050 | AD18: AL HASSAWI | AL18: 511 | AM18: 8511
Y19: 46 | Z19: صناعات الفارس | AB19: 51 | AC19: C0100051 | AD19: AL HASSAWI REF. | AL19: 512 | AM19: 8512
T20: A/P Settlement Statement | Y20: 50 | Z20: شركة الحساوى لمعدات التبريد والتكييف | AB20: 55 | AC20: C0100055 | AD20: AL JAHRAA | AL20: 513 | AM20: 8513
T21: A/P Contract | Y21: 51 | Z21: مصانع الحساوى لصناعة الثلاجات ومبردات الماء | AB21: 59 | AC21: C0100059 | AD21: AL JAZIRA INT. GROUP FOR ELECT | AL21: 514 | AM21: 8514
T22: A/P invoice | Y22: 53 | Z22: شركة الحور للمواد الغذائية | AB22: 62 | AC22: C0100062 | AD22: AL-JOTHOOR FACIAL TISSUES PAPE | AL22: 515 | AM22: 8515
C23: =SUM(C2:C22) -> 1808 | T23: A/P memorandum | Y23: 55 | Z23: شركة الجهراء للمنتجات والالات الزراعية | AB23: 63 | AC23: C0100063 | AD23: AL JOTHOOR PRINTING PRESS | AL23: 516 | AM23: 8516
U25: =PROPER(EngNum2Text(Y29)) -> 
U26: =ArbNum2Text(Y29) -> 
Y28: 59 | Z28: مجموعة الجزيرة العالمية للإلكترونات | AB28: 67 | AC28: C0100067 | AD28: AL KHAMSAN | AL28: =AL23+1 -> 517 | AM28: =AM23+1 -> 8517
T29: JUN 015 | Y29: 62 | Z29: مصنع الجذور للورق | AB29: 71 | AC29: C0100071 | AD29: AL MAHMOOD TRADING & CONT. CO. | AL29: =AL28+1 -> 518 | AM29: =AM28+1 -> 8518
T30: JULY 015 | X30: 473.75 | Y30: 63 | Z30: مطبعة الجذور الوطنية | AB30: 76 | AC30: C0100076 | AD30: AL MATROOK | AL30: =AL29+1 -> 519 | AM30: 8519
Y31: 64 | Z31: الجبو للتجارة العامة | AB31: 77 | AC31: C0100077 | AD31: AL MOHANED FOR FOOD STUFF | AL31: 520 | AM31: 8520
U32: عيسى عبد العزيز عيسى الحشاش | V32: رامى رمزي الاحمديه | Y32: 67 | Z32: شركة الخمسان للتجارة العامة والمقاولات | AB32: 91 | AC32: C0100091 | AD32: AL QATAMI AGR. | AL32: 521 | AM32: 8521
V33: مساعد نجم عبد الله العطيبى | Y33: 71 | Z33: شركة المحمود للتجارة والمقاولات | AB33: 92 | AC33: C0100092 | AD33: AL QATAMI INTERNATIONAL _trad. | AL33: 522 | AM33: 8522
V34: عيسى عبد العزيز عيسى الحشاش | Y34: 74 | Z34: شركة مجموعة المسيل | AB34: 94 | AC34: C0100094 | AD34: AL QATAMI FOR WORK | AL34: 523 | AM34: 8523
D35: Account Code | H35: =B5 ->  | J35: =LOOKUP(C5,$Y:$Y,$Z:$Z) -> عبد العزيز طلعت عبد العزيز على | S35: 30883 | U35: طارق أحمد السيد أحمد | V35: بدر سليمان خالد الشقيح | Y35: 76 | Z35: مصنع المتروك للأصباغ | AB35: 96 | AC35: C0100096 | AD35: AL RADI | AL35: 524 | AM35: 8524
D36: Cheque No. | H36: =IF(C5=167,H5,H3) -> 11819 | S36: 30884 | U36: طارق أحمد السيد أحمد | V36: محمد جابر مطر عبد | Y36: 77 | Z36: المهند للمواد الغذائية | AB36: 97 | AC36: C0100097 | AD36: AL RAED SECURITY CO. | AL36: 525 | AM36: 8525
S37: 30885 | V37: احمد سعود على النغيمش | Y37: 88 | Z37: شركة العثمان واالبشر للتجارة المحدودة | AB37: 98 | AC37: C0100098 | AD37: AL RAI AL AAM | AL37: 526 | AM37: 8526
V38: حسن عباس حسن منصورى | X38: 37.5 | Y38: 91 | Z38: شركة القطامى الزراعية | AB38: 100 | AC38: C0100100 | AD38: AL RAWDAH PAPER & NYLON PRODUC | AL38: 527 | AM38: =AM37+1 -> 8527
V39: محمد احمد حسن الحمدان | Y39: 92 | Z39: شركة القطامى الدولية للتجارة والمقاولات | AB39: 101 | AC39: C0100101 | AD39: AL RAWDADAIN WATER | AL39: 528 | AM39: 8528
V40: مصطفى موسى مصطفى يعقوب | Y40: 94 | Z40: شركة القطامى للاشغال والبناء | AB40: 124 | AC40: C0100124 | AD40: AL SHARHAN INDUSTRIES | AL40: 529 | AM40: 8529
V41: محمد شريف محمد سروار | Y41: 96 | Z41: مؤسسة الراضي للأدوات الكهربائية ومقاولاتها | AB41: 136 | AC41: C0100136 | AD41: AL ZAHEM INDUSTRIES CONT. & G. | AL41: 530 | AM41: 8530
S42: (أحمد الشال ) | X42: 4498.8 | Y42: 97 | Z42: شركة الرائد للحراسة | AB42: 137 | AC42: C0100137 | AD42: AL ZAHRAA TRADING EST. | AL42: 531 | AM42: 8531
S43: (احمد راضى) | T43: يناير 2020 | U43: قيمة إستعاضة عهدة المشتريات | Y43: 98 | Z43: شركة الراي العالمية للدعاية والإعلان | AB43: 147 | AC43: C0100147 | AD43: ARABI CO. | AL43: 532 | AM43: 8532
D44: =$L$5 -> 2023-10-12 | H44: =$K$6 -> 2023-10-28 | K44: =U43 -> قيمة إستعاضة عهدة المشتريات | O44: =O15-O46 -> 537.4 | S44: (خالد ابو بكر) | T44: 24418 | U44: قيمة إلغاء حجز رقم | Y44: 100 | Z44: شركة الروضة لصناعة وطبع اكياس الورق | AB44: 152 | AC44: C0100152 | AD44: ATLAS BLUE GEN. TRAD.&CONT CO | AL44: 533 | AM44: 8533
S45: 38975 | T45: قيمة أوامر شراء رقم | U45: قيمة أمر شراء رقم | Z45: شركة تعبئة مياه الروضتين | AB45: 154 | AC45: C0100154 | AD45: BADR AL MOLLA | AL45: 534 | AM45: 8534
K46: =S44 -> (خالد ابو بكر) | S46: 1992-10-21 | T46: (خروج شاليهات بتاريخ -20/09/2023 ) | U46: تأمين غرف مسترد | Y46: 117 | Z46: الصانع للمنتجات الكيماوية | AB46: 157 | AC46: C0100157 | AD46: BAKRY GAD ALI | AL46: 535 | AM46: 8535
S47: يونيه2023 ( خدمات سباحه) | U47: قيمة الشيك مقابل شيك تم إلغاءه رقم 11297 | Y47: 118 | Z47: مؤسسة الصقعبى الوطنية للتجارة العامة | AB47: 159 | AC47: C0100159 | AD47: BAND --- ALL SINGERS | AL47: 536 | AM47: 8536
S48: يوليو 2023 | U48: قيمة إجمالي فواتير مستحقه عن شهر | Y48: 124 | Z48: صناعات الشرهان | AB48: 161 | AC48: C0100161 | AD48: BHASIN CO. | AL48: 537 | AM48: 8537
S49: اغسطس 2023 | U49: قيمة فاتوره شهر | Y49: 136 | Z49: شركة الزاحم للصناعات والمقاولات والنقل العام | AL49: 538 | AM49: 8538
S50: يوليو 2023 | U50: قيمة إستعاضة عهدة شئون الموظفين | Y50: 137 | Z50: مؤسسة الزهراء التجارية | AB50: 167 | AC50: C0100167 | AD50: CXL RESERVATION | AL50: 539 | AM50: 8539
S51: سبتمبر 2020 | U51: قيمة أجمالي المستحق | X51: 86.25 | Y51: 147 | Z51: شركة عربى | AB51: 170 | AC51: C0100170 | AD51: DAR AL SEYASSAH EST. NEWSPAPER | AL51: 540 | AM51: 8540
U52: وفقاً للعقد المبرم | Y52: 149 | Z52: شركةاسيا للميكانيك و الكهرباء | AB52: 171 | AC52: C0100171 | AD52: DAR AL WATAN | AL52: 541 | AM52: 8541
U53: قيمة إستعاضة عهدة الصراف العام | Y53: 152 | Z53: شركة أطلس الازرق للتجارة العامة والمقاولات | AB53: 177 | AC53: C0100177 | AD53: DOOR SERVICE CENTER CO. | AL53: 542 | AM53: 8542
U54: قيمة تذاكر الطيران الخاصة للموظفين | Y54: 154 | Z54: شركة بدر الملا واخوانه | AA54: محمد سعيد | AB54: 178 | AC54: C0100178 | AD54: ESSA HUSSAIN AL YOUSFI | AL54: 543 | AM54: 8543
U55: عن خدمات النظافه | Y55: 157 | Z55: عبد العزيز طلعت عبد العزيز على | AA55: بكرى جاد على H R | AB55: 181 | AC55: C0100181 | AD55: FAHAD AL- SUWAYED SONS TRAD CO | AL55: 544 | AM55: =AM54+1 -> 8544
U56: عن العمالة | X56: 10450 | Y56: 159 | Z56: سامى صالح سالم باعكابه | AA56: عادل عبد الرحمن محمد الرويشد | AB56: 186 | AC56: C0100186 | AD56: FAWAZ REFR.&AIR CONDITIONING | AL56: 545 | AM56: 8545
T57: (سباحين) | U57: (ضباط أمن) | Y57: 161 | Z57: شركة بهاسين | AA57: ثروت صبحي ملك أبادير | AB57: 193 | AC57: C0100193 | AD57: GHANEM HAMAD AL DABBOS | AL57: 546 | AM57: 8546
T58: ل | U58: قيمة الشيك مقابل شيك تم إلغاءه رقم 10827 | Y58: 164 | Z58: شركة برقان الزراعية | AA58: إبراهيم سويلم عبود النمر | AB58: 207 | AC58: C0100207 | AD58: GULF UNITED CO. | AL58: 547 | AM58: 8547
S59: اكتوبر 2020 | U59: قيمة رد حجز فيلا تم الغاءها ل | Y59: 167 | Z59: =U12 -> رياض سالم سعد هيلات | AA59: سامى صالح سالم باعكابه | AB59: 214 | AC59: C0100214 | AD59: HASSAN ABUL CO. | AL59: 548 | AM59: =AM58+1 -> 8548
S60: سبتمبر 2020 | U60: قيمة صرف الامر التغييرى طبقا للعقد المبرم مع | Y60: 171 | Z60: دار الوطن للصحافة والطباعة والنشر | AA60: شركة كيو ايت فيوتشر ايفنت لتنظيم المعارض والمؤتمرات والمعسكرات الرياضية | AB60: 219 | AC60: C0100219 | AD60: HOUSE OF DEV. FOR AGRICULTURAL | AL60: 549 | AM60: 8549
T61: ديسمبر 2022 | U61: قيمة الرواتب النقدية الخاصة بالموظفين عن شهر | Y61: 173 | Z61: شركة هندسة وصيانة التكييف - داسكو | AA61: جاسم محمد عبد العزيز الرندى | AB61: 220 | AC61: C0100220 | AD61: IKRAM EL DIN BADR AL DIN | AL61: 550 | AM61: =AM60+1 -> 8550
U62: قيمة 60% من اجمالى المبيعات عن شهر يوليو 2023وفقا للعقد المبرم مع | Y62: 177 | Z62: شركة خدمات مركز الأبواب | AA62: شركة روعة المنظر الدولية للتجارة العامة والمقاولات | AB62: 223 | AC62: C0100223 | AD62: INTERNATIONAL POPULAR CO. | AL62: 551 | AM62: =AM61+1 -> 8551
K63: =D14 ->  | O63: =SUM(O44:O62) -> 537.4 | T63: =J35 -> عبد العزيز طلعت عبد العزيز على | U63: قيمة رد تأمين إشتراك شهري للسيد/ | Y63: 178 | Z63: شركة عيسى حسين اليوسفى وأولاده | AA63: سعد شاكر بشير فرج الخيرالله | AB63: 229 | AC63: C0100229 | AD63: JASSIM WAZZAN SONS GEN | AL63: 552 | AM63: =AM62+1 -> 8552
U64: عضو مارينا مؤقت رقم 706 مرسي رقم K-LR-30 | AA64: انور ابراهيم شامي
S65: من15/08/2021 وحتي31/08/2021 | U65: قيمة إيجار سكن مركز المعلومات في الفترة
T66: رضا السيد محمد شبل | U66: قيمة اجمالى حفلة تم عقدها بتاريخ 11/08/2023 وفقا لبنود العقد
U67: قيمة اجمالى عقد حفلات وتجهيزات تم اقامتها من تاريخ 26/06/2023 وحتى تاريخ 01/07/2023
U68: قيمة إعلان طرح موقع لتقديم خدمات ألعاب بحرية وترفيهية لرواد منتزه الخيران فى الموسم الصيفى 2023 | X68: 106 | Y68: 181 | Z68: شركة اولاد فهد السويد التجارية | AA68: بسام فهد عبد الرحمن البارود | AL68: 53 | AM68: =AM63+1 -> 8553
U69: قيمة مستحقات نهاية خدمة الموظف / روزلين ديسكويتادو بنتايان (332) | Y69: 186 | Z69: شركة فواز للتبريد وتكييف الهواء | AA69: شركة تي اند تي جلوبل | AB69: 236 | AC69: C0100236 | AD69: KAZEMA ENGINEERING PROJECTS | AL69: 54 | AM69: =AM68+1 -> 8554
U70: قيمة تجديد عقود الصيانه (MICROS- OPERA-SUN -MC) خاصة منتزه الخيران فى الفترة من 31/01/2023 وحتى 31/12/2023 | Y70: 190 | Z70: شركة الفواكه الطازجة | AB70: 239 | AC70: C0100239 | AD70: KUWAIT AGRICULTURE CO. | AL70: 55 | AM70: =AM69+1 -> 8555
U71: قيمة رد مبلغ تم دفعه بالزياده عن المبلغ المطلوب لحجز الشاليهات | AA71: شركة مجموعة فانتسى
U72: قيمة اجمالى مبلغ تجهيز واطلاق الالعاب النارية بتاريخ 26/02/2023 وفقا لبنود العقد | AA72: هيثم محمود محمود شحاته
AA73: احمد على عبد الله علي
AA74: حمد مبارك عبيد الزريبان
AA75: سعيد محمد سعيد واكد
AA76: إيدما يوسف شاهين الأسمر
Y77: 192 | Z77: المركز الالمانى للقرطاسية والادوات المكتبية | AA77: ناصر محمد عبد الغنى فرغلى | AB77: 245 | AC77: C0100245 | AD77: KUWAIT DEVELOPMENT&TRADING CO. | AL77: 56 | AM77: =AM70+1 -> 8556
Y78: 193 | Z78: مؤسسة غانم حمد الدبوس | AA78: محمد محمود المحمود | AB78: 247 | AC78: C0100247 | AD78: KUWAIT FOOD CO. - AMRICANA | AL78: 57 | AM78: =AM77+1 -> 8557
E79: 25 | Y79: 196 | Z79: شركة الحقول الخضراء الزراعية | AA79: جودالا جاندهى بوشكرودو | AB79: 250 | AC79: C0100250 | AD79: KNPC | AL79: 58 | AM79: =AM78+1 -> 8558
Y80: 200 | Z80: مجموعة الخليج الميكانيكية | AA80: على عبد العزيز حسن الحسن | AB80: 253 | AC80: C0100253 | AD80: KUWAIT PACKING MATERIALS MANUF | AL80: 59 | AM80: =AM79+1 -> 8559
Y81: 207 | Z81: الشركة المتحدة الخليجية للأدوات الصحية | AB81: 254 | AC81: C0100254 | AD81: KUWAIT PAINT CO. | AL81: 60 | AM81: =AM80+1 -> 8560
J82: فقط مائتان ديناركويتى لا غير | Y82: 214 | Z82: شركة حسن أبل | AA82: شركة حسن أبل | AB82: 258 | AC82: C0100258 | AD82: KUWAIT PROTEINS CO. | AL82: 61 | AM82: =AM81+1 -> 8561
Y83: 219 | Z83: شركة بيت الإنماء للمقاولات الزراعية | AB83: 260 | AC83: C0100260 | AD83: KUWAIT TIMES PUBLISHING HOUSE | AL83: 62 | AM83: =AM82+1 -> 8562
Y84: 223 | Z84: الشركة الشعبية الدولية للتجارة العامة والمقاولات | AA84: الشركة الشعبية الدولية للتجارة العامة والمقاولات | AB84: 262 | AC84: C0100262 | AD84: LIBANON BAKERIES | AL84: 63 | AM84: 8563
Y85: 229 | Z85: شركة اولاد جاسم الوزان للتجارة العامة | AB85: 264 | AC85: C0100264 | AD85: KUWAIT LIVESTOCK | AL85: 64 | AM85: 8564
Y86: 231 | Z86: شركة جاسم للنقليات والمناولة | AB86: 266 | AC86: C0100266 | AD86: MABROOK HOTEL | AL86: 65 | AM86: 8565
H87: فقط مائة واثنانِ ديناركويتي لا غير | X87: 112 | Y87: 236 | Z87: كاظمة للتجهيزات وقطع الغيار | AB87: 267 | AC87: C0100267 | AD87: MAHMOUD AL-NOURI EST. FOR GEN. | AL87: 66 | AM87: 8566
X88: 875 | Y88: 239 | Z88: شركة الكويت للزراعة | AB88: 268 | AC88: C0100268 | AD88: MARAFIE SONS CO. | AL88: 67 | AM88: 8567
Y89: 245 | Z89: الشركة الكويتية للإنشاء والتجارة | AB89: 271 | AC89: C0100271 | AD89: MIDDLE EAST CHEMICAL MANUFA | AL89: 68 | AM89: 8568
W90: 35 | X90: 604 | Y90: 247 | Z90: الشركة الكويتية للأغذية امريكانا | AB90: 272 | AC90: C0100272 | AD90: MINISTRY OF COMMUNICATION | AL90: 69 | AM90: 8569
Y91: 250 | Z91: شركة البترول الوطنية الكويتية | AB91: 274 | AC91: C0100274 | AD91: MISC
Y92: 251 | Z92: الشركة الكويتية الوطنية لتعبئة القنانى | AB92: 275 | AC92: C0100275 | AD92: MOBILE TELECOMUNICATIONS | AL92: 70 | AM92: =AM90+1 -> 8570
Y93: 253 | Z93: الشركة الكويتية لصناعة مواد التغليف | AB93: 277 | AC93: C0100277 | AD93: MOHMD ABDUL RAHAMAN AL BAHAR | AL93: 71 | AM93: 8571
Y94: 254 | Z94: شركة أصباغ الكويت | AB94: 280 | AC94: C0100280 | AD94: MOHMD ABDUL RAHAMAN AL BAHAR P | AL94: 72 | AM94: 8572
Y95: 258 | Z95: شركة البروتين الكويتية | AB95: 285 | AC95: C0100285 | AD95: MOSTAFA KARAM & SONS GEN. TRAD | AL95: 73 | AM95: 8573
Y96: 261 | Z96: شركة كويتل | AB96: 288 | AC96: C0100288 | AD96: NATIONAL INDUSTRIES COMPANY | AL96: 74 | AM96: 8574
X97: 81.6 | Y97: 262 | Z97: شركة مخبز جوهرة لبنـــان | AB97: 289 | AC97: C0100289 | AD97: NATIONAL MEDICAL & CATERING SU | AL97: 75 | AM97: 8575
Y98: 264 | Z98: شركة نقل وتجارة المواشى | AB98: 291 | AC98: C0100291 | AD98: NATIONAL TEXTILE CO. | AL98: 76 | AM98: 8576
L99: IF(W90="A",arbnum2text(W100),PROPER("Only"&" "&(EngNum2Text(W100)))) | Y99: 266 | Z99: شركة مبروك للتجهيزات الفندقية | AB99: 295 | AC99: C0100295 | AD99: PALMS AGRO PRODUCTION CO. | AL99: 77 | AM99: 8577
Y100: 267 | Z100: مؤسسة محمود النورى للتجارة العامة والمقاولات | AB100: 298 | AC100: C0100298 | AD100: RAAD STORES CO. | AL100: 78 | AM100: 8578
Y101: 268 | Z101: شركة مجموعة معرفى الهندسية | AA101: شركة مجموعة معرفى الهندسية | AB101: 303 | AC101: C0100303 | AD101: S.Y. DAN | AL101: 79 | AM101: 8579
L102: فقط ثلاثة آلاف وثمانمائة واثنانِ ديناركويتي وخمسمائة فلس لا غير | Y102: 271 | Z102: شركة الشرق الأوسط لتصنيع المواد الكيماوية | AB102: 304 | AC102: C0100304 | AD102: SABAH TRADING & CONT. CO. | AL102: 80 | AM102: 8580
Y103: 272 | Z103: وزارة المواصلات | AB103: 307 | AC103: C0100307 | AD103: SAKR SOUDAN AL ANZY | AL103: 81 | AM103: 8581
Y104: 274 | Z104: عبد الله إبراهيم أحمد عبد الله | AA104: شركة كينا للتجارة العامة والمقاولات | AB104: 317 | AC104: C0100317 | AD104: SPORT MAN | AL104: 82 | AM104: 8582
W105: =SUMIF($Y:$Y,$C$5,$X:$X) -> 537.4 | Y105: 275 | Z105: شركة الاتصالات المتنقلة | AA105: شركة فاشونت لإدارة وتنظيم المعارض | AB105: 321 | AC105: C0100321 | AD105: G R W INVOICE ( T . E. C. ) | AL105: 83 | AM105: 8583
Y106: 277 | Z106: شركة محمد عبد الرحمن البحر | AA106: شركة الراي العالمية للدعاية والاعلان | AB106: 323 | AC106: C0100323 | AD106: TANZIFCO CLEANING EQUIPMENT TR | AL106: 84 | AM106: 8584
Y107: 280 | Z107: محمد عبد الرحمن البحر وشركاة | AA107: خالد فلاح حمد العازمي | AB107: 324 | AC107: C0100324 | AD107: TAREQ AHMAD AL SAYED | AL107: 85 | AM107: 8585
Y108: 281 | Z108: شركة محمد حمود الشايع | AA108: شركة الدار الكويتية للإعلام | AB108: 327 | AC108: C0100327 | AD108: THE ARAB CIRCLE TRADING EST | AL108: 86 | AM108: 8586
Y109: 283 | Z109: شركة محمد بن يوسف النصف وشركاة | AB109: 333 | AC109: C0100333 | AD109: THE KUWAITI DANISH DAIRY CO. K | AL109: 87 | AM109: 8587
Y110: 285 | Z110: طارق أحمد السيد أحمد | AA110: شركة مصطفى كرم واولادة لتاجير السيارات | AB110: 335 | AC110: C0100335 | AD110: THE MEDIATOR FOR IND. COM | AL110: 88 | AM110: 8588
Y111: 288 | Z111: شركة الصناعات الوطنية | AA111: شركة الصناعات الوطنية لمواد البناء | AB111: 336 | AC111: C0100336 | AD111: THE NEW AL-MIRAH CO.FOR GEN. T | AL111: 89 | AM111: 8589
Y112: 289 | Z112: الشركة الوطنية الطبية للصناعات الاستهلاكية | AB112: 338 | AC112: C0100338 | AD112: THE TECHNICAL COMPANY W.L.L. | AL112: 90 | AM112: 8590
Y113: 291 | Z113: شركة المنسوجات الوطنية | AB113: 339 | AC113: C0100339 | AD113: THE TRADING & INDUSTRIAL EQUIP | AL113: 91 | AM113: 8591
Y114: 295 | Z114: شركة النخيل للانتاج الزراعى | AB114: 352 | AC114: C0100352 | AD114: VERMINEX - SABAEQ AL KUWAIT | AL114: 92 | AM114: 8592
Y115: 298 | Z115: شركة رعد للتجارة والتسويق | AB115: 353 | AC115: C0100353 | AD115: WAEL AL NUSIF TRAD. CO. | AL115: 93 | AM115: 8593
Y116: 303 | Z116: مؤسسة أس وأى دان للتجارة العامة والمقاولات | AB116: 354 | AC116: C0100354 | AD116: WALEED TOY'S & GIFT'S | AL116: 94 | AM116: 8594
Y117: 307 | Z117: شركة صقر سودان العنزى العالمية للتجارة العامة | AB117: 359 | AC117: C0100359 | AD117: YUSUF AHMAD AL GHANEM & SONS | AL117: 95 | AM117: 8595
Y118: 317 | Z118: شركة الرياضى للتجارة العامة والمقاولات | AA118: طارق أحمد السيد أحمد | AB118: 377 | AC118: C0100377 | AD118: ACE HARDWARE COM | AL118: 96 | AM118: 8596
Y119: 323 | Z119: شركة تنــــــظيــفـكـو لتجارة معدات التنظيف | AB119: 383 | AC119: C0100383 | AD119: TRANS GULF FOOD STUFF | AL119: 97 | AM119: 8597
Y120: 324-1 | Z120: عبد العزيز طلعت عبد العزيز على | AB120: 386 | AC120: C0100386 | AD120: AL HERZ GROUP - GEN. TRAD. & C | AL120: 98 | AM120: 8598
Y121: 327 | Z121: مؤسسة الدائرة العربية التجارية | AB121: 412 | AC121: C0100412 | AD121: AL KHELAFI | AL121: 99 | AM121: 8599
Y122: 329 | Z122: شركة السيف الذهبى للتبريد والتكييف | AB122: 413 | AC122: C0100413 | AD122: EQUIPMENT CO | AL122: 100 | AM122: 8600
Y123: 333 | Z123: شركة الألبان الكويتية الدانماركية | AB123: 417 | AC123: C0100417 | AD123: NORTH GULF FACTORY FOR PAINT & | AL123: 101 | AM123: 8601
Y124: 335 | Z124: شركة الوسيط للصناعة والتجارة | AB124: 420 | AC124: C0100420 | AD124: GOLDEN AL MESHAL | AL124: 102 | AM124: 8602
Y125: 336 | Z125: شركة الميرة الجديدة للتجارة العامة والمقاولات | AB125: 430 | AC125: C0100430 | AD125: KHALIL AL-BANA EST. | AL125: 103 | AM125: 8603
D126: APPROVED BY:........................ | Y126: 338 | Z126: شركة تقنية المطابخ ومعدات المغاسل | AB126: 441 | AC126: C0100441 | AD126: AL DABOUSE READY MIX CONCRET | AL126: 104 | AM126: 8604
Y127: 339 | Z127: شركة التجارة والمحركات الصناعية | AB127: 443 | AC127: C0100443 | AD127: AL SHAMS SALBOKH | AL127: 105 | AM127: 8605
Y128: 347 | Z128: شركة الاسماك الكويتية المتحدة | AB128: 448 | AC128: C0100448 | AD128: ABDULKARIM A.REHMAN ALAUDAH CO | AL128: 106 | AM128: 8606
K129: =ArbNum2Text(V110) ->  | X129: 450 | Y129: 352 | Z129: شركة فيرمينكس لمقاولات القوارض والآفات | AB129: 454 | AC129: C0100454 | AD129: JARRER PRESS | AL129: 107 | AM129: 8607
Y130: 353 | Z130: شركة وائل النصف وشركاه التجارية | AB130: 462 | AC130: C0100462 | AD130: AZZAD TRADING GROUP | AL130: 108 | AM130: 8608
Y131: 354 | Z131: شركة وليد للألعاب و الهدايا | AB131: 467 | AC131: C0100467 | AD131: AL-HUMAIDAN | AL131: 109 | AM131: 8609
Y132: 359 | Z132: يوسف احمد الغانم واولاده | AA132: يوسف احمد الغانم واولاده | AB132: 480 | AC132: C0100480 | AD132: MODERN BUILDING COMPANY | AL132: 110 | AM132: 8610
Y133: 361 | Z133: شركة أولاد زيد الكاظمى للتجارة والمقاولات | AB133: 482 | AC133: C0100482 | AD133: ARAB PAINTING | AL133: 111 | AM133: 8611
Y134: 369 | Z134: الشركة الكويتية لبناء المعامل والمقاولات | AB134: 485 | AC134: C0100485 | AD134: HUSSAIN JOWHAR EST. HOTEL & CA | AL134: 112 | AM134: 8612
Y135: 372 | Z135: الشركة الكويتية الدانماركية للكمبيوتر | AB135: 492 | AC135: C0100492 | AD135: OTAIBI & ABDU MARKET CO. | AL135: 113 | AM135: 8613
Y136: 377 | Z136: شركة ايس هاردوير | AB136: 518 | AC136: C0100518 | AD136: KIRBY BULDING SYSTEM-KUWAIT | AL136: 114 | AM136: 8614
Y137: 379 | Z137: مؤسسة خلف النويشرى للأغذية | AB137: 523 | AC137: C0100523 | AD137: QAIS ABDULLA THUNAIYAN AL-GHAN | AL137: 115 | AM137: 8615
Y138: 381 | Z138: الشركة العربية للتنظيف | AB138: 525 | AC138: C0100525 | AD138: ROUQIA AL DIHANI | AL138: 116 | AM138: 8616
Y139: 382 | Z139: شركة الشويخ الكهربائية | AB139: 534 | AC139: C0100534 | AD139: ABDUL HAMID AL ESSA | AL139: 117 | AM139: 8617
Y140: 383 | Z140: مؤسسة عبر الخليج للمواد الغذائية | AB140: 555 | AC140: C0100555 | AD140: ABDUL AZIZ AL ESSA | AL140: 118 | AM140: 8618
Y141: 386 | Z141: شركة مجموعة الحرز للتجارة العامة والمقاولات | AB141: 562 | AC141: C0100562 | AD141: SA'AD MURSHED G. TRAD. & CONT | AL141: 119 | AM141: 8619
K142: فقط ثلاثمائة وأربعة وثمانونَ ديناركويتى ومائتان و واحد فلس لا غير | Y142: 405 | Z142: شركة الرياح الغربية للعناية بالبيئة | AB142: 569 | AC142: C0100569 | AD142: TABARAK INTERNATIONAL CO. | AL142: 120 | AM142: 8620
Y143: 410 | Z143: شركة إفرست للمواد الغذائية | AB143: 1000 | AC143: C0101000 | AD143: SILSSAN | AL143: 121 | AM143: 8621
Y144: 412 | Z144: شركة الخليفى للأدوات الصحية | AB144: 1002 | AC144: C0101002 | AD144: GULF TRADING & REFRIGERATING C | AL144: 122 | AM144: 8622
Y145: 413 | Z145: شركة المعدات | AB145: 1005 | AC145: C0101005 | AD145: UNITED BEVERAGE COMPANY | AL145: 123 | AM145: 8623
Y146: 415 | Z146: مؤسسة المنصور لمواد البناء | AB146: 1010 | AC146: C0101010 | AD146: OLD SAROUR | AL146: 124 | AM146: 8624
Y147: 417 | Z147: مصنع شمال الخليج للأصباغ والمذيبات | AB147: 1014 | AC147: C0101014 | AD147: AL QURAIN AUTOMOTIVE TRD. CO | AL147: 125 | AM147: =AM146+1 -> 8625
Y148: 420 | Z148: مؤسسة المشعل الذهبى للمعدات الخفيفة والثقيلة | AB148: 1015 | AC148: C0101015 | AD148: AL-WABRAN | AL148: 126 | AM148: 8626
Y149: 425 | Z149: عايض مصلح الشلاحى | AB149: 1024 | AC149: C0101024 | AD149: AL GHANIM & NASS GEN. TRADING | AL149: 127 | AM149: 8627
Y150: 429 | Z150: شركة الغانم للمواد الخصوصية | AB150: 1031 | AC150: C0101031 | AD150: NUSIBA CENTER | AL150: 128 | AM150: 8628
X151: 100 | Y151: 430 | Z151: شركة اولاد خليل البناء التجارية | AB151: 1051 | AC151: C0101051 | AD151: AL SHOHADA SANITARY | AL151: 129 | AM151: 8629
Y152: 431 | Z152: شركة حديدكو للتجارة والمقاولات | AB152: 1061 | AC152: C0101061 | AD152: AL FARKAD TRADING | AL152: 130 | AM152: 8630
Y153: 435 | Z153: مؤسسة البحر الأهلية | AB153: 1064 | AC153: C0101064 | AD153: KHIRAN STAFF | AL153: 131 | AM153: 8631
Y154: 443 | Z154: شركة الشمس للصلبوخ | AB154: 1069 | AC154: C0101069 | AD154: AL NAHAR INT. | AL154: 132 | AM154: 8632
Y155: 445 | Z155: مصانع الحساوى لصناعة الثلاجات | AB155: 1074 | AC155: C0101074 | AD155: AL-GHANNAM TIRES CEN.CO.W.LL | AL155: 133 | AM155: 8633
Y156: 448 | Z156: شركة عبد الكريم عبد الرحمن العودة وأولادة | AB156: 1075 | AC156: C0101075 | AD156: LADER ELECTRONICS | AL156: 134 | AM156: 8634
Y157: 454 | Z157: شركة مطبعة جرير | AB157: 1077 | AC157: C0101077 | AD157: DESIGN PLUS MARK & ADVERTISING | AL157: 135 | AM157: 8635
Y158: 462 | Z158: Azzad Trading Group | AB158: 1090 | AC158: C0101090 | AD158: GTC PAINT CO.LTD. | AL158: 136 | AM158: 8636
Y159: 466 | Z159: شركة عباس الهزيم وأولادة | AB159: 1095 | AC159: C0101095 | AD159: MOHAMED NASER AL SAYER & SONS | AL159: 137 | AM159: 8637
Y160: 467 | Z160: مؤسسة الحميدان لقطع الغيار | AB160: 1107 | AC160: C0101107 | AD160: ABDULLAH ZUBAID READYMADE TENT | AL160: 138 | AM160: 8638
Y161: 471 | Z161: مؤسسة وايركنترول للأدوات الكهربائية | AB161: 1109 | AC161: C0101109 | AD161: ABDUL MOHSIN S. AL-ABDUL RAZZA | AL161: 139 | AM161: 8639
Y162: 482 | Z162: مؤسسة الاصباغ العربية | AB162: 1112 | AC162: C0101112 | AD162: DABBOUS READY MIX CO. LTD | AL162: 140 | AM162: 8640
Y163: 485 | Z163: مؤسسة حسين جوهر | AB163: 1120 | AC163: C0101120 | AD163: HEMPEL PAINTS KUWAIT K.S.C.C. | AL163: 141 | AM163: 8641
Y164: 491 | Z164: معرض النصر الله للأدوات الصحية وصيانتها | AB164: 1125 | AC164: C0101125 | AD164: AL-HABSHI ESTABLISHMENT | AL164: 142 | AM164: 8642
Y165: 492 | Z165: شركة سوق العتيبى وعبده المركزى | AB165: 1139 | AC165: C0101139 | AD165: TAIBAC FURNITURE | AL165: 143 | AM165: 8643
Y166: 493 | Z166: المجموعة الخليجية المتحدة | AB166: 1141 | AC166: C0101141 | AD166: AL SAFA PRESS | AL166: 144 | AM166: 8644
Y167: 496 | Z167: شركة ريز للتجارة العامة والمقاولات | AB167: 1148 | AC167: C0101148 | AD167: AL-RYADH GROUP CO. | AL167: 145 | AM167: 8645
Y168: 502 | Z168: شركة الخدمات والتمويل الصناعى | AB168: 1151 | AC168: C0101151 | AD168: AL KHONAINI GEN. TRAD. | AL168: 146 | AM168: 8646
Y169: 506 | Z169: شركة البابطين للالكترونيات | AB169: 1154 | AC169: C0101154 | AD169: BHARATH METAL LATHE FACTORY | AL169: 147 | AM169: 8647
Y170: 515 | Z170: شركة القرطاسية المركزية | AA170: معرض رقية الديحانى | AB170: 1161 | AC170: C0101161 | AD170: NESTLEE | AL170: 148 | AM170: 8648
Y171: 523 | Z171: مؤسسة قيس عبد الله ثنيان الغانم | AB171: 1165 | AC171: C0101165 | AD171: NATIONAL FISHING COMPANY | AL171: 149 | AM171: 8649
Y172: 525 | Z172: خالد عبد المجيد حميد العبد الرزاق | AB172: 1169 | AC172: C0101169 | AD172: HAMDAN AL-ADWANY COM . | AL172: 150 | AM172: 8650
Y173: 527 | Z173: شركة على محمد ثنيان الغانم واولاده للتجارة العامة | AB173: 1171 | AC173: C0101171 | AD173: AL-ENTESAR SANITARY&MAINT.EXH. | AL173: 151 | AM173: 8651
Y174: 529 | Z174: شركة جودت خلف للأوانى المنزلية | AB174: 1185 | AC174: C0101185 | AD174: AL BITAR AL ZAHBI G. | AL174: 152 | AM174: 8652
Y175: 533 | Z175: مؤسسة التفوق العلمى للتجارة العامة | AB175: 1197 | AC175: C0101197 | AD175: FAISAL AL QATAMI STEEL TRAD | AL175: 153 | AM175: 8653
Y176: 534 | Z176: شركة العيسى للتكييف والتبريد ومقاولاتها | AB176: 1216 | AC176: C0101216 | AD176: AL DAR AL BAIDA ELECTRIAL CO. | AL176: 154 | AM176: 8654
Y177: 536 | Z177: مؤسسة هاواى للتجارة العامة والمقاولات | AB177: 1223 | AC177: C0101223 | AD177: FAISAL AL KHALIDI EST. | AL177: 155 | AM177: 8655
Y178: 555 | Z178: شركة عبد العزيز عيسى للتجارة العامة | AB178: 1228 | AC178: C0101228 | AD178: KUWAIT BRITCH FACTORY | AL178: 156 | AM178: 8656
Y179: 556 | Z179: شركة محمد ناصر الهاجرى واولادة | AB179: 1229 | AC179: C0101229 | AD179: SHESHA COM.CIGARETTES&TOBACO | AL179: 157 | AM179: 8657
Y180: 557 | Z180: طارق أحمد السيد أحمد | AA180: شركة محمد عبد السلام شعيب واولادة التجارية | AB180: 1234 | AC180: C0101234 | AD180: BURGAN GULF EST. | AL180: 158 | AM180: 8658
Y181: 558 | Z181: رويال ماركتنج | AB181: 1240 | AC181: C0101240 | AD181: AL-MASSILA INTERNATIONAL CO. | AL181: 159 | AM181: 8659
Y182: 562 | Z182: شركة سعد مرشد للتجارة العامة والمقاولات | AB182: 1242 | AC182: C0101242 | AD182: AL HOMAIZI LIMITED COM | AL182: 160 | AM182: 8660
Y183: 568 | Z183: مؤسسة هيدروليك | AB183: 1248 | AC183: C0101248 | AD183: ABDULNABI AL-SARRAF EST. | AL183: 161 | AM183: 8661
Y184: 1000 | Z184: شركة سلسان للقوارب والمعدات البحرية | AB184: 1253 | AC184: C0101253 | AD184: HYDROTEK ENGINEERING CO. | AL184: 162 | AM184: 8662
Y185: 1002 | Z185: شركة الخليج للتجارة والتبريد | AB185: 1254 | AC185: C0101254 | AD185: NASER AL-OMAR G. TRAD. EST | AL185: 163 | AM185: 8663
X186: 544.5 | Y186: 1005 | Z186: الشركة المتحدة للمرطبات | AB186: 1257 | AC186: C0101257 | AD186: SHOLAT AL HUDA MARKET | AL186: 164 | AM186: 8664
Y187: 1006 | Z187: المخرطة الذهبية | AB187: 1259 | AC187: C0101259 | AD187: INTERCARE | AL187: 165 | AM187: 8665
Y188: 1007 | Z188: شركة البيارق الكويتية للتجارة | AA188: سرور القديم | AB188: 1260 | AC188: C0101260 | AD188: WEDAD RAMADAN GEN.TRAD.CO | AL188: 166 | AM188: 8666
Y189: 1010 | Z189: سرور القديم | AB189: 1263 | AC189: C0101263 | AD189: ROMEO PRODUCTION PHOTOGRAPHY | AL189: 167 | AM189: 8667
Y190: 1011 | Z190: شركة شاهين الغانم | AB190: 1266 | AC190: C0101266 | AD190: HASSAN KHEDR BOU OMAR | AL190: 168 | AM190: 8668
Y191: 1014 | Z191: شركة القرين لتجارة السيارات | AB191: 1279 | AC191: C0101279 | AD191: AL ASKAFI CENTER | AL191: 169 | AM191: 8669
Y192: 1015 | Z192: وبران للتنجيد الاثاث والمفروشات | AB192: 1287 | AC192: C0101287 | AD192: DAHAN GENERAL TRADING & CONT | AL192: 170 | AM192: 8670
Y193: 1016 | Z193: قرطاسية دلال | AB193: 1291 | AC193: C0101291 | AD193: RABLA GLASS | AL193: 171 | AM193: 8671
Y194: 1017 | Z194: شركة الخليج الحضارية | AB194: 1298 | AC194: C0101298 | AD194: LAALEA AL SHAHEEN CENTER | AL194: 172 | AM194: 8672
Y195: 1022 | Z195: مركز لحظات للدعاية والإعلان | AB195: 1299 | AC195: C0101299 | AD195: AL-DARYAH COMPUTER | AL195: 173 | AM195: 8673
Y196: 1024 | Z196: شركة الغانم وناس للتجارة العامة والمقاولات | AB196: 1302 | AC196: C0101302 | AD196: GLOBAL UNIOUN | AL196: 174 | AM196: 8674
Y197: 1028 | Z197: مؤسسة الشارقه | AB197: 1305 | AC197: C0101305 | AD197: SAFETY INTR. G. TRAD | AL197: 175 | AM197: 8675
Y198: 1031 | Z198: مركز نسيبة للمواد الغذائية | AB198: 1308 | AC198: C0101308 | AD198: NORTH AMERICAN EST | AL198: 176 | AM198: 8676
Y199: 1041 | Z199: مهلب الخليج | AB199: 1318 | AC199: C0101318 | AD199: HYDRAULIC EST. | AL199: 177 | AM199: 8677
Y200: 1050 | Z200: ملحمة الإخوة | AB200: 1324 | AC200: C0101324 | AD200: BIN NISF GEN.TRADING&CONT.CO | AL200: 178 | AM200: 8678
Y201: 1051 | Z201: مؤسسة الشهداء للأدوات الصحية | AB201: 1325 | AC201: C0101325 | AD201: JABSHEH GENERAL TRADING CO. | AL201: 179 | AM201: 8679
Y202: 1054 | Z202: شركة الماكينات الصناعية للتجارة | AB202: 1326 | AC202: C0101326 | AD202: AL OULA FISH COMPANY | AL202: 180 | AM202: 8680
X203: 1050 | Y203: 1061 | Z203: مؤسسة الفرقد التجارية | AA203: موظفين | AB203: 1328 | AC203: C0101328 | AD203: AL JAZAIRY EST. FOR PAINTS | AL203: 181 | AM203: 8681
Y204: 1063 | Z204: شركة مجموعة مطابع مريم برجس | AB204: 1330 | AC204: C0101330 | AD204: GREEN LINES AGRI. EST. | AL204: 182 | AM204: 8682
... 2046 more rows

Sheet Sheet2
A1: IF(#REF!="A",arbnum2text(L2),PROPER("Only"&" "&(EngNum2Text(L2))))
C11: IF(N2="A",arbnum2text(N12),PROPER("Only"&" "&(EngNum2Text(N12))))
E25: VLOOKUP(C5,Sheet4!C1:H200,6,0
G30: 1

Sheet الغاء حجز
A7: PAYABLE TO: | C7: رياض سالم سعد هيلات | H7: VENDER NO. | I7: 167 | J7: 10801
A8: FOR MONTH: | C8: 2023-10-12 | H8: VOUCHER NO | I8: 24418 | K8: 23243
H9: CHEQUE NO | I9: 11819 | AL9: 21105002 | AN9: This YEAR
AL10: 21105008 | AN10: Next Year
AL11: 21105007 | AN11: GUEST DEPOSIT
B12: DATE | C12: AMOUNT | E12: ACCOUNTS NO.
C13: KD | D13: FILS | E13: 3020411 | G13: 3020412 | I13: 1080211 | J13: 4070318 | K13: 3020411
B14: =TODAY() -> 2023-10-28 | C14: 537.4 | D14: 0 | E14: 180 | F14: 0 | G14: 100 | H14: 0 | I14: 0 | J14: =E14+G14-C14+I14 -> -257.4
J15: *****
A18: PREPARED BY : ………………………………………………………………
A20: CHECKED BY : …………………………………………………………………
A22: ASST. FIN.CONTROLLER : ……..…………….......................................
A24: FINANCIAL CONTROLLER :……..…………….......................................
A27: GENERAL MANAGER :…………………………………………………….
A65: 800135

Sheet Sheet4
D1: AMOUNT | E1: SUPPLIER NAME | F1: no
C2: =F2 -> 0 | D2: 200 | E2: سعد عبد الله عبد المحسن حمود | G2: =D2 -> 200 | H2: 3778 | I2: =H2+8000 -> 11778
C3: =F3 -> 0 | D3: 200 | E3: سلمى اسماعيل عبد الله باوزير | G3: =D3 -> 200 | H3: 3779 | I3: =H3+8000 -> 11779
C4: 0 | D4: 200 | E4: مشاري جمال عبد الكريم العوضي | G4: 200 | H4: 3780 | I4: 11780
C5: 0 | D5: 250 | E5: مشعل خليفة حمد الدبوس | G5: 250 | H5: 3781 | I5: 11781
C6: 0 | D6: 250 | E6: عبد الرحمن حسن فيصل الطاهر | G6: 250 | H6: 3782 | I6: 11782
C7: 0 | D7: 492.5 | E7: اس أف تكنولوجي للمواد الإنشائية والديكور | G7: 492.5 | H7: 3783 | I7: 11783
C8: 0 | D8: 96 | E8: شركة اولاد فهد السويد التجارية | G8: 96 | H8: 3784 | I8: 11784
C9: 0 | D9: 160 | E9: سعد عبد الله فهد الهاجري | G9: 160 | H9: 3785 | I9: 11785
C10: 0 | D10: 100 | E10: عبد الله حمد عبد الله الفارس | G10: 100 | H10: 3786 | I10: 11786
C11: 0 | D11: 10000 | E11: تامين غرف مسترد | G11: 10000 | H11: 3787 | I11: 11787
C12: 0 | D12: 2000 | E12: تامين غرف مسترد | G12: 2000 | H12: 3788 | I12: 11788
C13: 0 | D13: 553.75 | E13: خالد ابو بكر | G13: 553.75 | H13: 3789 | I13: 11789
C14: 0 | D14: 115 | E14: شركة ديزل كير | G14: 115 | H14: 3790 | I14: 11790
C15: 0 | D15: 14408.59 | E15: الشركة الوطنية لصناعات الاسفنج والمراتب الطبية | G15: 14408.59 | H15: 3791 | I15: 11791
C16: 0 | D16: 187 | E16: شركة الكويتية للمبانى للتجارة العامة والمقاولات | G16: 187 | H16: 3798 | I16: 11798
C17: 0 | D17: 13000 | E17: تامين غرف مسترد | G17: 13000 | H17: 3799 | I17: 11799
C18: 0 | D18: 2000 | E18: تامين غرف مسترد | G18: 2000 | H18: 3800 | I18: 11800
C19: 0 | D19: 740 | E19: شركة الساير لبيع وشراء وتاجير السيارات | G19: 740 | H19: 3801 | I19: 11801
C20: 0 | D20: 200 | E20: خالد جواد محمود جوهر حياة | G20: 200 | H20: 3802 | I20: 11802
C21: 0 | D21: 250 | E21: يوسف ابراهيم عبد الوهاب سيف | G21: 250 | H21: 3803 | I21: 11803
C22: 0 | D22: 200 | E22: بدر ناصر احمد العصيمى | G22: 200 | H22: 3804 | I22: 11804
C23: 0 | D23: 300 | E23: عادل يوسف عبد العزيز المنيفى | G23: 300 | H23: 3805 | I23: 11805
C24: 0 | D24: 300 | E24: ناصر بدر أحمد السلمان | G24: 300 | H24: 3806 | I24: 11806
C25: 0 | D25: 250 | E25: أحمد صالح ظاهر حسين | G25: 250 | H25: 3807 | I25: 11807
C26: 0 | D26: 500 | E26: ناصر بدر ناصر العيسى | G26: 500 | H26: 3808 | I26: 11808
C27: 0 | D27: 250 | E27: الدكتور بدر حسين اسماعيل التميمي | G27: 250 | H27: 3812 | I27: 11812
C28: 0 | D28: 394.02 | E28: احمد عبد الحميد راضى | G28: 394.02 | H28: 3813 | I28: 11813
C29: 0 | D29: 409 | E29: خالد ابو بكر | G29: 409 | H29: 3814 | I29: 11814
C30: 0 | D30: 119.6 | E30: مصطفى نصير | G30: 119.6 | H30: 3816 | I30: 11816
C31: 0 | D31: 1105 | E31: شركة أي بي ان العالمية | G31: 1105 | H31: 3817 | I31: 11817
C32: 274 | D32: 200 | E32: عبد الله إبراهيم أحمد عبد الله | F32: 274 | G32: 200 | H32: 3818 | I32: 11818
C33: 1808 | D33: 537.4 | E33: خالد ابو بكر | F33: 1808 | G33: 537.4 | H33: 3819 | I33: 11819
C34: 0 | G34: 0 | H34: 3820 | I34: 11820
C35: 0 | G35: 0 | H35: 3821 | I35: 11821
C36: 0 | G36: 0 | H36: 3822 | I36: 11822
C37: 0 | G37: 0 | H37: 3823 | I37: 11823
C38: 0 | G38: 0 | H38: 3824 | I38: 11824
C39: 0 | G39: 0 | H39: 3825 | I39: 11825
C40: 0 | G40: 0 | H40: 3826 | I40: 11826
C41: 0 | G41: 0 | H41: 3827 | I41: 11827
C42: 0 | G42: 0 | H42: 3828 | I42: 11828
C43: 0 | G43: 0 | H43: 3829 | I43: 11829
C44: 0 | G44: 0 | H44: 3830 | I44: 11830
C45: 0 | G45: 0 | H45: 3831 | I45: 11831
C46: 0 | G46: 0 | H46: 3832 | I46: 11832
C47: 0 | G47: 0 | H47: 3833 | I47: 11833
C48: 0 | G48: 0 | H48: 3834 | I48: 11834
C49: 0 | G49: 0 | H49: 3835 | I49: =H49+8000 -> 11835
C50: 0 | G50: 0 | H50: 3836 | I50: =H50+8000 -> 11836
C51: 0 | G51: 0 | H51: 3837 | I51: 11837
C52: 0 | G52: 0 | H52: 3838 | I52: 11838
C53: 0 | G53: 0 | H53: 3839 | I53: 11839
C54: 0 | G54: 0 | H54: 3840 | I54: 11840
C55: 0 | G55: 0 | H55: 3841 | I55: 11841
C56: 0 | G56: 0 | H56: 3842 | I56: 11842
C57: 0 | G57: 0 | H57: 3843 | I57: 11843
C58: 0 | G58: 0 | H58: 3844 | I58: 11844
C59: 0 | G59: 0 | H59: 3845 | I59: 11845
C60: 0 | G60: 0 | H60: 3846 | I60: 11846
C61: 0 | G61: 0 | H61: 3847 | I61: 11847
C62: 0 | G62: 0 | H62: 3848 | I62: 11848
C63: 0 | G63: 0 | H63: 3849 | I63: 11849
C64: 0 | G64: 0 | H64: 3850 | I64: 11850
C65: 0 | G65: 0 | H65: 3851 | I65: 11851
C66: 0 | G66: 0 | H66: 3852 | I66: 11852
C67: =F67 -> 0 | G67: 0 | H67: 3853 | I67: =H67+8000 -> 11853
C68: 0 | G68: =D68 -> 0 | H68: 3854 | I68: =H68+8000 -> 11854
C69: 0 | G69: 0 | H69: 3855 | I69: =H69+8000 -> 11855
C70: 0 | G70: 0 | H70: 3856 | I70: 11856
C71: 0 | G71: 0 | H71: 3857 | I71: 11857
C72: 0 | G72: 0 | H72: 3858 | I72: 11858
C73: 0 | G73: 0 | H73: 3859 | I73: 11859
C74: 0 | G74: 0 | H74: 3860 | I74: 11860
C75: 0 | G75: 0 | H75: 3861 | I75: 11861
C76: 0 | G76: 0 | H76: 3862 | I76: 11862
C77: 0 | G77: 0 | H77: 3863 | I77: 11863
C78: 0 | G78: 0 | H78: 3864 | I78: 11864
C79: 0 | G79: 0 | H79: 3865 | I79: 11865
C80: 0 | G80: 0 | H80: 3866 | I80: =H80+8000 -> 11866
C81: 0 | G81: 0 | H81: 3867 | I81: =H81+8000 -> 11867
C82: 0 | G82: 0 | H82: 3868 | I82: =H82+8000 -> 11868
C83: 0 | G83: 0 | H83: 3869 | I83: =H83+8000 -> 11869
C84: 0 | G84: 0 | H84: 3870 | I84: 11870
C85: 0 | G85: 0 | H85: 3871 | I85: 11871
C86: 0 | G86: 0 | H86: 3872 | I86: 11872
C87: 0 | G87: 0 | H87: 3873 | I87: 11873
C88: 0 | G88: 0 | H88: 3874 | I88: 11874
C89: 0 | G89: 0 | H89: 3875 | I89: 11875
C90: 0 | G90: 0 | H90: 3876 | I90: 11876
C91: 0 | G91: 0 | H91: 3877 | I91: 11877
C92: 0 | G92: 0 | H92: 3878 | I92: 11878
C93: 0 | G93: 0 | H93: 3879 | I93: 11879
C94: 0 | G94: 0 | H94: 3880 | I94: 11880
C95: 0 | G95: 0 | H95: 3881 | I95: 11881
C96: 0 | G96: 0 | H96: 3882 | I96: 11882
C97: 0 | G97: 0 | H97: 3883 | I97: 11883
A101: 1 | C101: 167 | D101: 790 | E101: عذاري عدنان يوسف العمر | F101: 167 | H101: 3598 | I101: =H101+8000 -> 11598
A102: 2 | C102: 167 | D102: 790 | E102: زهراء عدنان هاشم مزيدى | F102: 167 | H102: 3599 | I102: 11599
A103: 3 | C103: 167 | D103: 440 | E103: مها سالم محمد الرشيدى | F103: 167 | H103: 3600 | I103: 11600
A104: 4 | C104: 167 | D104: 790 | E104: رجاء عبد الحميد فرج بهبهانى | F104: 167 | H104: 3601 | I104: 11601
A105: 5 | C105: 167 | D105: 790 | E105: محمد أمين أحمد بهبهانى | F105: 167 | H105: 3602 | I105: 11602
A106: 6 | C106: 167 | D106: 450 | E106: نصير أمين أحمد بهبهانى | F106: 167 | H106: 3603 | I106: 11603
A107: 7 | C107: 167 | D107: 440 | E107: خلود ابراهيم سالم العمران | F107: 167 | H107: 3604 | I107: 11604
A108: 8 | C108: 167 | D108: 440 | E108: هدي جمعان محمد الحريتى | F108: 167 | H108: 3605 | I108: 11605
A109: 9 | C109: 167 | D109: 440 | E109: جميله فهيد محمد الحريتى | F109: 167 | H109: 3606 | I109: 11606
A110: 10 | C110: 167 | D110: 270 | E110: رياض سالم سعد هيلات | F110: 167 | H110: 3815 | I110: 11815
A111: 11 | C111: 167 | F111: 167 | H111: 3608 | I111: 11608
A112: 12 | C112: 167 | F112: 167 | H112: 3609 | I112: 11609
A113: 13 | C113: 167 | F113: 167 | H113: 3627 | I113: 11627
A114: 14 | C114: 167 | F114: 167 | H114: 3628 | I114: 11628
A115: 15 | C115: 167 | F115: 167 | H115: 3629 | I115: 11629
A116: 16 | C116: 167 | F116: 167 | H116: 3630 | I116: 11630
A117: 17 | C117: 167 | F117: 167 | H117: 3631 | I117: 11631
A118: 18 | C118: 167 | F118: 167 | H118: 3632 | I118: 11632
A119: 19 | C119: 167 | F119: 167 | I119: 8000
A120: 20 | C120: 167 | F120: 167 | I120: 8000
A121: 21 | C121: 167 | F121: 167 | I121: 8000
A122: 22 | C122: 167 | F122: 167 | I122: 8000
A123: 23 | C123: 167 | F123: 167 | I123: 8000
A124: 24 | C124: 167 | F124: 167 | I124: 8000
A125: 25 | C125: 167 | F125: 167 | I125: 8000
A126: 26 | C126: 167 | F126: 167 | I126: 8000
A127: 27 | C127: 167 | F127: 167 | I127: 8000
A128: 28 | C128: 167 | F128: 167 | I128: 8000
A129: 29 | C129: 167 | F129: 167 | I129: 8000
A130: 30 | C130: 167 | F130: 167 | I130: 8000
A131: 31 | C131: 167 | F131: 167 | I131: 8000
A132: 32 | C132: 167 | F132: 167 | I132: =H60+8000 -> 11846
A133: 33 | C133: 167 | F133: 167 | I133: =H61+8000 -> 11847
A134: 34 | C134: 167 | F134: 167 | I134: 8000
A135: 35 | C135: 167 | F135: 167 | I135: 8000
C136: 167 | F136: 167 | I136: 8000
C137: 167 | F137: 167 | I137: 8000
C138: 167 | F138: 167 | I138: 8000
C139: 167 | F139: 167 | I139: 8000
C140: 167 | F140: 167 | I140: 8000
C141: 167 | F141: 167 | I141: 8000
C142: 167 | F142: 167 | I142: 8000
C143: 167 | F143: 167 | I143: 8000
C144: 167 | F144: 167 | I144: 8000
C145: 167 | F145: 167 | I145: 8000
C146: 167 | F146: 167
C147: 167 | F147: 167
C148: 167 | F148: 167
C149: 167 | F149: 167
C150: 167 | F150: 167
C151: 167 | F151: 167
C152: 167 | F152: 167
C153: 167 | F153: 167
C154: 167 | F154: 167
C155: 167 | F155: 167
C156: 167 | F156: 167
C157: 167 | F157: 167
C158: 167 | F158: 167
C159: 167 | F159: 167
C160: 167 | F160: 167
C161: 167 | F161: 167
C162: 167 | F162: 167
C163: 167 | F163: 167
C164: 167 | F164: 167
C165: 167 | F165: 167
C166: 167 | F166: 167
C167: 167 | F167: 167
C168: 167 | F168: 167
C169: 167 | F169: 167
C170: 167 | F170: 167
C171: 167 | F171: 167
C172: 167 | F172: 167
C173: 167 | F173: 167
C174: 167 | F174: 167
C175: 167 | F175: 167
C176: 167 | F176: 167
C177: 167 | F177: 167
C178: 167 | F178: 167
C179: 167 | F179: 167
C180: 167 | F180: 167
C181: 167 | F181: 167
C182: 167 | F182: 167
C183: 167 | F183: 167
C184: 167 | F184: 167
C185: 167 | F185: 167
C186: 167 | F186: 167
C187: 167 | F187: 167
C188: 167 | F188: 167
C189: 167 | F189: 167
C190: 167 | F190: 167
C191: 167 | F191: 167
C192: 167 | F192: 167
C193: 167 | F193: 167
C194: 167 | F194: 167
C195: 167 | F195: 167
C196: 167 | F196: 167
C197: 167 | F197: 167
C198: 167 | F198: 167
C199: 167 | F199: 167
C200: 167 | F200: 167
C201: 167 | F201: 167
C202: 167 | F202: 167
C203: 167 | F203: 167
... 370 more rows

Sheet SUPP
A1: khiran | B1: supplier name | C1: khiran2 | D1: Oracle | E1: م
A2: 1 | B2: عبد العزيز سعد مطلق | C2: 1 | E2: 1
A3: 2 | B3: عبد الكريم محمد منجم | C3: 2 | E3: 2
A4: 8 | B4: شركة المواد والتجهيزات الزراعية | C4: 8 | E4: 3
A5: 10 | B5: الشركة الاهلية للادوات الكهربائية | C5: 10 | E5: 4
A6: 11 | B6: أناندان | C6: 11 | E6: 5
A7: 15 | B7: شركة أحمد يوسف عبد الهادى الميلم واخوانه | C7: 15 | D7: 10076 | E7: 6
A8: 17 | B8: شركة الغانم الهندسية للتجارة العامة والمقاولات( صناعات الامانة) | C8: 17 | D8: 10976 | E8: 7
A9: 19 | B9: شركة محامص ومطاحن بن العميد | C9: 19 | D9: 10755 | E9: 8
A10: 20 | B10: شركة العمار وشركاة الكهربائية | C10: 20 | E10: 9
A11: 26 | B11: العالمية | C11: 26 | E11: 10
A12: 33 | B12: شركة البحر وبردويل للمواد الخصوصية | C12: 33 | D12: 10872 | E12: 11
A13: 38 | B13: شركة البوم مارين | C13: 38 | D13: 10327 | E13: 12
A14: 41 | B14: شركة العيسى للتكييف | C14: 41 | E14: 13
A15: 46 | B15: صناعات الفارس | C15: 46 | E15: 14
A16: 50 | B16: شركة الحساوى لمعدات التبريد والتكييف | C16: 50 | E16: 15
A17: 51 | B17: مصانع الحساوى لصناعة الثلاجات ومبردات الماء | C17: 51 | E17: 16
A18: 53 | B18: شركة الحور للمواد الغذائية | C18: 53 | E18: 17
A19: 55 | B19: شركة الجهراء للمنتجات والالات الزراعية | C19: 55 | E19: 18
A20: 59 | B20: مجموعة الجزيرة العالمية للإلكترونات | C20: 59 | E20: 19
A21: 62 | B21: مصنع الجذور للورق | C21: 62 | E21: 20
A22: 63 | B22: مطبعة الجذور | C22: 63 | D22: 11157 | E22: 21
A23: 64 | B23: الجبو للتجارة العامة | C23: 64 | E23: 22
A24: 67 | B24: شركة الخمسان للتجارة العامة والمقاولات | C24: 67 | D24: 10233 | E24: 23
A25: 71 | B25: شركة المحمود للتجارة والمقاولات | C25: 71 | E25: 24
A26: 74 | B26: شركة مجموعة المسيل | C26: 74 | E26: 25
A27: 76 | B27: مصنع المتروك للأصباغ | C27: 76 | E27: 26
A28: 77 | B28: المهند للمواد الغذائية | C28: 77 | E28: 27
A29: 88 | B29: شركة العثمان واالبشر للتجارة المحدودة | C29: 88 | E29: 28
A30: 91 | B30: شركة القطامى الزراعية | C30: 91 | D30: 10756 | E30: 29
A31: 92 | B31: شركة القطامى الدولية للتجارة والمقاولات | C31: 92 | D31: 10026 | E31: 30
A32: 94 | B32: شركة القطامى للاشغال والبناء | C32: 94 | E32: 31
A33: 96 | B33: مؤسسة الراضى الكهربائية | C33: 96 | E33: 32
A34: 97 | B34: شركة الرائد للحراسة | C34: 97 | D34: 10109 | E34: 33
A35: 98 | B35: شركة الراي العالمية للدعاية والإعلان | C35: 98 | E35: 34
A36: 100 | B36: شركة الروضة لصناعة وطبع اكياس الورق | C36: 100 | E36: 35
A37: 101 | B37: شركة تعبئة مياه الروضتين | C37: 101 | E37: 36
A38: 117 | B38: الصانع للمنتجات الكيماوية | C38: 117 | E38: 37
A39: 118 | B39: مؤسسة الصقعبى الوطنية للتجارة العامة | C39: 118 | E39: 38
A40: 124 | B40: صناعات الشرهان | C40: 124 | D40: 10302 | E40: 39
A41: 136 | B41: شركة الزاحم للصناعات والمقاولات والنقل العام | C41: 136 | D41: 10363 | E41: 40
A42: 137 | B42: مؤسسة الزهراء التجارية | C42: 137 | E42: 41
A43: 147 | B43: شركة عربى | C43: 147 | D43: 10073 | E43: 42
A44: 149 | B44: شركةاسيا للميكانيك و الكهرباء | C44: 149 | E44: 43
A45: 152 | B45: شركة أطلس الازرق للتجارة العامة والمقاولات | C45: 152 | E45: 44
A46: 154 | B46: شركة بدر الملا واخوانه | C46: 154 | E46: 45
A47: 157 | B47: مصطفى نصير | C47: 157 | D47: 10850 | E47: 46
A48: 157 | B48: احمد الديب | C48: 157 | D48: 10850 | E48: 47
A49: 157 | B49: محمد سعيد | C49: 157 | D49: 10850 | E49: 48
A50: 159 | B50: حفلات هلا فبراير | C50: 159 | D50: 10975 | E50: 49
A51: 161 | B51: شركة بهاسين | C51: 161 | D51: 10186 | E51: 50
A52: 164 | B52: شركة برقان الزراعية | C52: 164 | D52: 10321 | E52: 51
A53: 167 | B53: Cancellation | C53: 167 | D53: 10801 | E53: 52
A54: 171 | B54: دار الوطن للصحافة والطباعة والنشر | C54: 171 | E54: 52
A55: 173 | B55: شركة هندسة وصيانة التكييف - داسكو | C55: 173 | E55: 53
A56: 177 | B56: شركة خدمات مركز الأبواب | C56: 177 | E56: 54
A57: 178 | B57: شركة عيسى حسين اليوسفى وأولاده | C57: 178 | D57: 10110 | E57: 55
A58: 181 | B58: شركة اولاد فهد السويد التجارية | C58: 181 | D58: 11198 | E58: 56
A59: 186 | B59: شركة فواز للتبريد وتكييف الهواء | C59: 186 | E59: 57
A60: 190 | B60: شركة الفواكه الطازجة | C60: 190 | E60: 58
A61: 192 | B61: المركز الالمانى للقرطاسية والادوات المكتبية | C61: 192 | E61: 59
A62: 193 | B62: مؤسسة غانم حمد الدبوس | C62: 193 | E62: 60
A63: 196 | B63: شركة الحقول الخضراء الزراعية | C63: 196 | E63: 61
A64: 200 | B64: مجموعة الخليج الميكانيكية | C64: 200 | E64: 62
A65: 207 | B65: الشركة المتحدة الخليجية للأدوات الصحية | C65: 207 | E65: 63
A66: 214 | B66: شركة حسن أبل | C66: 214 | E66: 64
A67: 219 | B67: شركة بيت الانماء للمقاولات الزراعية | C67: 219 | D67: 10098 | E67: 65
A68: 223 | B68: الشركة الشعبية الدولية للتجارة العامة والمقاولات | C68: 223 | E68: 66
A69: 229 | B69: شركة اولاد جاسم الوزان للتجارة العامة | C69: 229 | E69: 67
A70: 231 | B70: شركة جاسم للنقليات والمناولة | C70: 231 | E70: 68
A71: 236 | B71: كاظمة للتجهيزات وقطع الغيار | C71: 236 | D71: 10108 | E71: 69
A72: 239 | B72: شركة الكويت للزراعة | C72: 239 | D72: 10086 | E72: 70
A73: 245 | B73: الشركة الكويتية للإنشاء والتجارة | C73: 245 | D73: 10895 | E73: 71
A74: 247 | B74: الشركة الكويتية للأغذية امريكانا | C74: 247 | D74: 10069 | E74: 72
A75: 250 | B75: شركة البترول الوطنية الكويتية | C75: 250 | D75: 10061 | E75: 73
A76: 251 | B76: الشركة الكويتية الوطنية لتعبئة القنانى | C76: 251 | E76: 74
A77: 253 | B77: الشركة الكويتية لصناعة مواد التغليف | C77: 253 | D77: 11058 | E77: 75
A78: 254 | B78: شركة اصباغ الكويت | C78: 254 | D78: 10784 | E78: 76
A79: 258 | B79: شركة البروتين الكويتية | C79: 258 | D79: 10018 | E79: 77
A80: 261 | B80: شركة كويتل | C80: 261 | E80: 78
A81: 262 | B81: شركة مخبز جوهرة لبنـــان | C81: 262 | D81: 10758 | E81: 79
A82: 264 | B82: شركة نقل وتجارة المواشى | C82: 264 | E82: 80
A83: 266 | B83: شركة مبروك للتجهيزات الفندقية | C83: 266 | D83: 10003 | E83: 81
A84: 267 | B84: مؤسسة محمود النورى للتجارة العامة والمقاولات | C84: 267 | E84: 82
A85: 268 | B85: شركة مجموعة معرفى الهندسية | C85: 268 | E85: 83
A86: 271 | B86: شركة الشرق الأوسط لتصنيع المواد الكيماوية | C86: 271 | E86: 84
A87: 272 | B87: وزارة المواصلات | C87: 272 | D87: 10058 | E87: 85
A88: 274N | B88: شركة ريلود االالعاب (ناصر خليل ابراهيم المزين) | C88: 274N | D88: 10859 | E88: 86
A89: 274 | B89: متنوعات | C89: 274 | D89: 11163 | E89: 86
A90: 275 | B90: شركة الاتصالات المتنقلة | C90: 275 | E90: 87
A91: 277 | B91: محمد عبد الرحمن البحر | C91: 277 | E91: 88
A92: 280 | B92: محمد عبد الرحمن البحر وشركاة | C92: 280 | E92: 89
A93: 281 | B93: شركة محمد حمود الشايع | C93: 281 | E93: 90
A94: 283 | B94: شركة محمد بن يوسف النصف وشركاة | C94: 283 | E94: 91
A95: 285 | B95: شركة مصطفى كرم واولادة لتاجير السيارات | C95: 285 | E95: 92
A96: 288 | B96: شركة الصناعات الوطنية | C96: 288 | D96: 10833 | E96: 93
A97: 289 | B97: الشركة الوطنية للتجهيزات الطبية والغذائية | C97: 289 | E97: 94
A98: 291 | B98: شركة المنسوجات الوطنية | C98: 291 | D98: 11063 | E98: 95
A99: 295 | B99: شركة النخيل للانتاج الزراعى | C99: 295 | E99: 96
A100: 298 | B100: شركة رعد للتجارة والتسويق | C100: 298 | E100: 97
A101: 303 | B101: مؤسسة اس واى دان للتجارة العامة والمقاولات | C101: 303 | D101: 10235 | E101: 98
A102: 304 | B102: شركة الصباح للتجارة و المقاولات | C102: 304 | E102: 99
A103: 307 | B103: شركة صقر سودان العنزى العالمية للتجارة العامة | C103: 307 | E103: 100
A104: 317 | B104: شركة الرياضى للتجارة العامة والمقاولات | C104: 317 | E104: 101
A105: 321 | B105: TEC | C105: 321 | E105: 102
A106: 323 | B106: شركة تنــــــظيــفـكـو | C106: 323 | D106: 10072 | E106: 103
A107: 324-1 | B107: عبد العزيز طلعت عبد العزيز على | C107: 324-1 | D107: 11648 | E107: 104
E108: 105
A109: 327 | B109: مؤسسة الدائرة العربية التجارية | C109: 327 | E109: 106
A110: 329 | B110: شركة السيف الذهبى للتبريد والتكييف | C110: 329 | E110: 107
A111: 333 | B111: شركة الالبان الكويتية الدانماركية | C111: 333 | D111: 10236 | E111: 108
A112: 335 | B112: شركة الوسيط للصناعة والتجارة | C112: 335 | E112: 109
A113: 336 | B113: شركة الميرة الجديدة للتجارة العامة والمقاولات | C113: 336 | E113: 110
A114: 338 | B114: شركة تقنية المطابخ ومعدات المغاسل | C114: 338 | D114: 11167 | E114: 111
A115: 339 | B115: شركة التجارة والمحركات الصناعية | C115: 339 | E115: 112
A116: 347 | B116: شركة الاسماك الكويتية المتحدة | C116: 347 | E116: 113
A117: 347 | B117: شركة الاسماك الكويتية المتحدة | C117: 347 | E117: 114
A118: 352 | B118: شركة فيرمينكس لمقاولات القوارض و الافات | C118: 352 | D118: 10864 | E118: 115
A119: 353 | B119: شركة وائل النصف وشركاه التجارية | C119: 353 | E119: 116
A120: 354 | B120: شركة وليد للألعاب و الهدايا | C120: 354 | D120: 11675 | E120: 117
A121: 359 | B121: يوسف احمد الغانم واولادة | C121: 359 | D121: 10237 | E121: 118
A122: 361 | B122: شركة أولاد زيد الكاظمى للتجارة والمقاولات | C122: 361 | E122: 119
A123: 369 | B123: الشركة الكويتية لبناء المعامل والمقاولات | C123: 369 | E123: 120
A124: 372 | B124: الشركة الكويتية الدانماركية للكمبيوتر | C124: 372 | E124: 121
A125: 377 | B125: شركة ايس هاردوير | C125: 377 | D125: 11120 | E125: 122
A126: 379 | B126: مؤسسة خلف النويشرى للأغذية | C126: 379 | E126: 123
A127: 381 | B127: الشركة العربية للتنظيف | C127: 381 | D127: 10238 | E127: 124
A128: 382 | B128: شركة الشويخ الكهربائية | C128: 382 | E128: 125
A129: 383 | B129: مؤسسة عبر الخليج للمواد الغذائية | C129: 383 | E129: 126
A130: 386 | B130: شركة مجموعة الحرز للتجارة العامة والمقاولات | C130: 386 | E130: 127
A131: 405 | B131: شركة الرياح الغربية للعناية بالبيئة | C131: 405 | E131: 128
A132: 410 | B132: شركة إفرست للمواد الغذائية | C132: 410 | E132: 129
A133: 412 | B133: شركة الخليفى للأدوات الصحية | C133: 412 | E133: 130
A134: 413 | B134: شركة المعدات | C134: 413 | E134: 131
A135: 415 | B135: مؤسسة المنصور لمواد البناء | C135: 415 | E135: 132
A136: 417 | B136: مصنع شمال الخليج للأصباغ والمذيبات | C136: 417 | E136: 133
A137: 420 | B137: مؤسسة المشعل الذهبى للمعدات الخفيفة والثقيلة | C137: 420 | E137: 134
A138: 425 | B138: عايض مصلح الشلاحى | C138: 425 | E138: 135
A139: 429 | B139: الغانم للمواد الخصوصية | C139: 429 | E139: 136
A140: 430 | B140: شركة اولاد خليل البناء التجارية | C140: 430 | D140: 10094 | E140: 137
A141: 431 | B141: شركة حديدكو للتجارة والمقاولات | C141: 431 | E141: 138
A142: 435 | B142: مؤسسة البحر الأهلية | C142: 435 | E142: 139
A143: 443 | B143: شركة الشمس للصلبوخ | C143: 443 | E143: 140
A144: 445 | B144: مصانع الحساوى لصناعة الثلاجات | C144: 445 | E144: 141
A145: 448 | B145: شركة عبد الكريم عبد الرحمن العودة وأولادة | C145: 448 | E145: 142
A146: 454 | B146: شركة مطبعة جرير | C146: 454 | E146: 143
A147: 462 | B147: مجموعة الزاد التجارية | C147: 462 | D147: 10184 | E147: 144
A148: 466 | B148: شركة عباس الهزيم وأولادة | C148: 466 | E148: 145
A149: 467 | B149: مؤسسة الحميدان لقطع الغيار | C149: 467 | D149: 11059 | E149: 146
A150: 471 | B150: مؤسسة وايركنترول للأدوات الكهربائية | C150: 471 | E150: 147
A151: 482 | B151: مؤسسة الاصباغ العربية | C151: 482 | E151: 148
A152: 485 | B152: مؤسسة حسين جوهر | C152: 485 | E152: 149
A153: 491 | B153: معرض النصر الله للأدوات الصحية وصيانتها | C153: 491 | E153: 150
A154: 492 | B154: شركة سوق العتيبى وعبده المركزى | C154: 492 | E154: 151
A155: 493 | B155: المجموعة الخليجية المتحدة | C155: 493 | E155: 152
A156: 496 | B156: شركة ريز للتجارة العامة والمقاولات | C156: 496 | E156: 153
A157: 502 | B157: شركة الخدمات والتمويل الصناعى | C157: 502 | E157: 154
A158: 506 | B158: شركة البابطين للالكترونيات | C158: 506 | E158: 155
A159: 515 | B159: شركة القرطاسية المركزية | C159: 515 | E159: 156
A160: 523 | B160: مؤسسة قيس عبد الله ثنيان الغانم | C160: 523 | E160: 157
A161: 525 | B161: معرض رقية الديحانى | C161: 525 | E161: 158
A162: 527 | B162: شركة على محمد ثنيان الغانم واولادة للتجارة العامة | C162: 527 | E162: 159
A163: 529 | B163: شركة جودت خلف للأوانى المنزلية | C163: 529 | E163: 160
A164: 533 | B164: مؤسسة التفوق العلمى للتجارة العامة | C164: 533 | E164: 161
A165: 534 | B165: شركة العيسى للتكييف والتبريد ومقاولاتها | C165: 534 | E165: 162
A166: 536 | B166: مؤسسة هاواى للتجارة العامة والمقاولات | C166: 536 | E166: 163
A167: 555 | B167: شركة عبد العزيز عيسى للتجارة العامة | C167: 555 | E167: 164
A168: 556 | B168: شركة محمد ناصر الهاجرى واولادة | C168: 556 | E168: 165
A169: 557 | B169: شركة محمد عبد السلام شعيب واولادة التجارية | C169: 557 | E169: 166
A170: 558 | B170: رويال ماركتنج | C170: 558 | E170: 167
A171: 562 | B171: شركة سعد مرشد للتجارة العامة والمقاولات | C171: 562 | E171: 168
A172: 568 | B172: مؤسسة هيدروليك | C172: 568 | E172: 169
A173: 1000 | B173: شركة سلسان للقوارب والمعدات البحرية | C173: 1000 | E173: 170
A174: 1002 | B174: شركة الخليج للتجارة والتبريد | C174: 1002 | E174: 171
A175: 1005 | B175: الشركة المتحدة للمرطبات | C175: 1005 | D175: 10785 | E175: 172
A176: 1006 | B176: المخرطة الذهبية | C176: 1006 | E176: 173
A177: 1007 | B177: شركة البيارق الكويتية للتجارة | C177: 1007 | E177: 174
A178: 1010 | B178: سرور القديم | C178: 1010 | E178: 175
A179: 1011 | B179: شركة شاهين الغانم | C179: 1011 | E179: 176
A180: 1014 | B180: شركة القرين لتجارة السيارات | C180: 1014 | E180: 177
A181: 1015 | B181: وبران للتنجيد الاثاث والمفروشات | C181: 1015 | E181: 178
A182: 1016 | B182: قرطاسية دلال | C182: 1016 | E182: 179
A183: 1017 | B183: شركة الخليج الحضارية | C183: 1017 | E183: 180
A184: 1022 | B184: مركز لحظات للدعاية والإعلان | C184: 1022 | E184: 181
A185: 1024 | B185: شركة الغانم وناس للتجارة العامة والمقاولات | C185: 1024 | D185: 10239 | E185: 182
A186: 1028 | B186: مؤسسة الشارقه | C186: 1028 | E186: 183
A187: 1031 | B187: مركز نسيبة للمواد الغذائية | C187: 1031 | E187: 184
A188: 1041 | B188: مهلب الخليج | C188: 1041 | E188: 185
A189: 1050 | B189: ملحمة الإخوة | C189: 1050 | E189: 186
A190: 1051 | B190: مؤسسة الشهداء للأدوات الصحية | C190: 1051 | E190: 187
A191: 1054 | B191: شركة الماكينات الصناعية للتجارة | C191: 1054 | E191: 188
A192: 1061 | B192: مؤسسة الفرقد التجارية | C192: 1061 | D192: 10025 | E192: 189
A193: 1063 | B193: شركة مجموعة مطابع مريم برجس | C193: 1063 | E193: 190
A194: 1064 | B194: موظفين | C194: 1064 | D194: 11188 | E194: 191
A195: 1069 | B195: شركة النهار الدولية لمكائن التصوير والطباعه | C195: 1069 | D195: 10111 | E195: 192
A196: 1070 | B196: شركة سوبر ساين | C196: 1070 | E196: 193
A197: 1071 | B197: مركز متكس للتجارة العامة | C197: 1071 | E197: 194
A198: 1074 | B198: شركة مركز الغنام للإطارات | C198: 1074 | E198: 195
A199: 1077 | B199: ديزاين بلس للدعاية والتسويق | C199: 1077 | E199: 196
A200: 1078 | B200: مركز الحرية للصناعات الكهربائية | C200: 1078 | E200: 197
... 794 more rows
